[Event "Titled Tuesday Blitz December 20 Early 2022"]
[White "Aleksandar-Topalov"]
[Black "Coachpoker"]
[WhiteElo "2401"]
[BlackElo "2626"]
[Result "0-1"]
[Round "08"]
[TimeControl "180+2"]
[Date "2022.12.20"]
[WhiteClock "0:01:24"]
[BlackClock "0:01:33"]

1. b3 {[%clk 0:03:00]}  b6 {[%clk 0:02:58]} 2. Bb2 {[%clk 0:02:51]}  Bb7 {[%clk 0:02:58]} 3. Nf3 {[%clk 0:02:51]}  Nf6 {[%clk 0:02:58]} 4. g3 {[%clk 0:02:51]}  g6 {[%clk 0:02:57]} 5. Bg2 {[%clk 0:02:51]}  Bg7 {[%clk 0:02:57]} 6. O-O {[%clk 0:02:51]}  O-O {[%clk 0:02:57]} 7. d3 {[%clk 0:02:51]}  c5 {[%clk 0:02:56]} 8. e4 {[%clk 0:02:50]}  Nc6 {[%clk 0:02:55]} 9. Nbd2 {[%clk 0:02:50]}  d6 {[%clk 0:02:52]} 10. Re1 {[%clk 0:02:48]}  Qc7 {[%clk 0:02:52]} 11. a4 {[%clk 0:02:46]}  a6 {[%clk 0:02:52]} 12. Nc4 {[%clk 0:02:42]}  b5 {[%clk 0:02:51]} 13. axb5 {[%clk 0:02:37]}  axb5 {[%clk 0:02:52]} 14. e5 {[%clk 0:02:36]}  dxe5 {[%clk 0:02:34]} 15. Ncxe5 {[%clk 0:02:34]}  e6 {[%clk 0:02:27]} 16. Nxc6 {[%clk 0:02:31]}  Bxc6 {[%clk 0:02:27]} 17. Qd2 {[%clk 0:02:15]}  Ne4 {[%clk 0:02:19]} 18. dxe4 {[%clk 0:02:14]}  Bxb2 {[%clk 0:02:18]} 19. Rxa8 {[%clk 0:02:14]}  Rxa8 {[%clk 0:02:18]} 20. c3 {[%clk 0:02:10]}  Ba1 {[%clk 0:02:12]} 21. Rc1 {[%clk 0:02:00]}  Bxe4 {[%clk 0:01:54]} 22. Qe1 {[%clk 0:01:59]}  Qb7 {[%clk 0:01:41]} 23. Rxa1 {[%clk 0:01:30]}  Rxa1 {[%clk 0:01:37]} 24. Qxa1 {[%clk 0:01:30]}  Bxf3 {[%clk 0:01:38]} 25. Bxf3 {[%clk 0:01:29]}  Qxf3 {[%clk 0:01:38]} 26. Qa5 {[%clk 0:01:29]}  Qd1+ {[%clk 0:01:36]} 27. Kg2 {[%clk 0:01:29]}  Qxb3 {[%clk 0:01:36]} 28. h4 {[%clk 0:01:24]}  h5 {[%clk 0:01:33]} 0-1


[Site "https://www.chess.com"]

[Event "Titled Tuesday Blitz December 20 Early 2022"]
[White "Alexei_Gubajdullin"]
[Black "Pietrek, Gerhard"]
[BlackFideId "24631698"]
[WhiteElo "2625"]
[BlackElo "1596"]
[Result "1-0"]
[Round "08"]
[TimeControl "180+2"]
[Date "2022.12.20"]
[WhiteClock "0:00:11"]
[BlackClock "0:00:05"]

1. Nf3 {[%clk 0:03:00]}  Nf6 {[%clk 0:02:58]} 2. c4 {[%clk 0:03:00]}  g6 {[%clk 0:02:59]} 3. g3 {[%clk 0:02:57]}  Bg7 {[%clk 0:03:00]} 4. Bg2 {[%clk 0:02:57]}  O-O {[%clk 0:03:01]} 5. O-O {[%clk 0:02:58]}  d6 {[%clk 0:03:01]} 6. Nc3 {[%clk 0:02:58]}  Nc6 {[%clk 0:03:01]} 7. Rb1 {[%clk 0:02:58]}  a5 {[%clk 0:02:58]} 8. a3 {[%clk 0:02:58]}  e5 {[%clk 0:02:53]} 9. b4 {[%clk 0:02:56]}  axb4 {[%clk 0:02:49]} 10. axb4 {[%clk 0:02:56]}  Re8 {[%clk 0:02:42]} 11. b5 {[%clk 0:02:56]}  Nd4 {[%clk 0:02:42]} 12. d3 {[%clk 0:02:55]}  Bg4 {[%clk 0:02:33]} 13. Nxd4 {[%clk 0:02:51]}  exd4 {[%clk 0:02:33]} 14. Ne4 {[%clk 0:02:52]}  Nxe4 {[%clk 0:02:31]} 15. Bxe4 {[%clk 0:02:51]}  Ra2 {[%clk 0:02:18]} 16. Rb2 {[%clk 0:02:44]}  Rxb2 {[%clk 0:02:18]} 17. Bxb2 {[%clk 0:02:43]}  c6 {[%clk 0:02:19]} 18. bxc6 {[%clk 0:02:27]}  bxc6 {[%clk 0:02:20]} 19. Bxc6 {[%clk 0:02:27]}  Bxe2 {[%clk 0:02:09]} 20. Qa4 {[%clk 0:02:25]}  Bxf1 {[%clk 0:02:03]} 21. Bxe8 {[%clk 0:02:24]}  Bxd3 {[%clk 0:02:02]} 22. Bc6 {[%clk 0:02:13]}  Qe7 {[%clk 0:01:52]} 23. Qa8+ {[%clk 0:02:10]}  Bf8 {[%clk 0:01:50]} 24. Kg2 {[%clk 0:02:06]}  Qe1 {[%clk 0:01:43]} 25. Bxd4 {[%clk 0:01:54]}  Bf1+ {[%clk 0:01:41]} 26. Kf3 {[%clk 0:01:54]}  Be2+ {[%clk 0:00:48]} 27. Kf4 {[%clk 0:01:48]}  Qc1+ {[%clk 0:00:41]} 28. Be3 {[%clk 0:01:29]}  Qxc4+ {[%clk 0:00:39]} 29. Be4 {[%clk 0:01:18]}  Qe6 {[%clk 0:00:34]} 30. Bd4 {[%clk 0:01:12]}  Bc4 {[%clk 0:00:08]} 31. g4 {[%clk 0:00:57]}  d5 {[%clk 0:00:08]} 32. Bf3 {[%clk 0:00:56]}  g5+ {[%clk 0:00:07]} 33. Kg3 {[%clk 0:00:56]}  Qd6+ {[%clk 0:00:07]} 34. Kg2 {[%clk 0:00:56]}  Qf4 {[%clk 0:00:07]} 35. Qa7 {[%clk 0:00:51]}  Bd3 {[%clk 0:00:06]} 36. h3 {[%clk 0:00:40]}  Be4 {[%clk 0:00:06]} 37. Bxe4 {[%clk 0:00:41]}  Qxe4+ {[%clk 0:00:06]} 38. Kg1 {[%clk 0:00:40]}  Qe6 {[%clk 0:00:06]} 39. Qb8 {[%clk 0:00:37]}  h6 {[%clk 0:00:07]} 40. Bc5 {[%clk 0:00:36]}  Qe1+ {[%clk 0:00:06]} 41. Kh2 {[%clk 0:00:34]}  Kh7 {[%clk 0:00:03]} 42. Qxf8 {[%clk 0:00:31]}  Qe5+ {[%clk 0:00:03]} 43. Kg2 {[%clk 0:00:28]}  Qe4+ {[%clk 0:00:04]} 44. f3 {[%clk 0:00:28]}  Qc2+ {[%clk 0:00:04]} 45. Bf2 {[%clk 0:00:27]}  Qg6 {[%clk 0:00:03]} 46. Qd8 {[%clk 0:00:25]}  Qe6 {[%clk 0:00:04]} 47. Qb8 {[%clk 0:00:22]}  h5 {[%clk 0:00:04]} 48. gxh5 {[%clk 0:00:21]}  f5 {[%clk 0:00:04]} 49. Qc7+ {[%clk 0:00:19]}  Kh6 {[%clk 0:00:04]} 50. Qb7 {[%clk 0:00:18]}  g4 {[%clk 0:00:05]} 51. hxg4 {[%clk 0:00:17]}  fxg4 {[%clk 0:00:06]} 52. Qb3 {[%clk 0:00:15]}  gxf3+ {[%clk 0:00:05]} 53. Qxf3 {[%clk 0:00:15]}  Qe5 {[%clk 0:00:06]} 54. Be3+ {[%clk 0:00:14]}  Kg7 {[%clk 0:00:05]} 55. Qg4+ {[%clk 0:00:13]}  Kf7 {[%clk 0:00:05]} 56. Qf4+ {[%clk 0:00:13]}  Ke6 {[%clk 0:00:03]} 57. Qxe5+ {[%clk 0:00:12]}  Kxe5 {[%clk 0:00:04]} 58. h6 {[%clk 0:00:12]}  d4 {[%clk 0:00:05]} 59. Bxd4+ {[%clk 0:00:11]}  Kf5 {[%clk 0:00:05]} 60. h7 {[%clk 0:00:11]} 1-0


[Site "https://www.chess.com"]

[Event "Titled Tuesday Blitz December 20 Early 2022"]
[White "Arnaldofdelavaramulet"]
[Black "Devallee, Jeremie"]
[BlackFideId "665240"]
[WhiteElo "2648"]
[BlackElo "2204"]
[Result "1-0"]
[Round "08"]
[TimeControl "180+2"]
[Date "2022.12.20"]
[WhiteClock "0:00:07"]
[BlackClock "0:00:27"]

1. Nf3 {[%clk 0:03:00]}  Nf6 {[%clk 0:02:59]} 2. g3 {[%clk 0:03:01]}  g6 {[%clk 0:02:59]} 3. b3 {[%clk 0:03:01]}  Bg7 {[%clk 0:03:00]} 4. Bb2 {[%clk 0:03:02]}  O-O {[%clk 0:03:00]} 5. Bg2 {[%clk 0:03:02]}  d5 {[%clk 0:03:00]} 6. c4 {[%clk 0:03:02]}  c6 {[%clk 0:03:00]} 7. O-O {[%clk 0:03:01]}  Bg4 {[%clk 0:02:55]} 8. Nc3 {[%clk 0:03:01]}  Bxf3 {[%clk 0:02:50]} 9. Bxf3 {[%clk 0:03:01]}  d4 {[%clk 0:02:49]} 10. Na4 {[%clk 0:02:54]}  e5 {[%clk 0:02:47]} 11. e3 {[%clk 0:02:49]}  e4 {[%clk 0:02:39]} 12. Bg2 {[%clk 0:02:49]}  d3 {[%clk 0:02:36]} 13. f3 {[%clk 0:02:21]}  exf3 {[%clk 0:02:29]} 14. Qxf3 {[%clk 0:02:18]}  Nbd7 {[%clk 0:02:28]} 15. Nc5 {[%clk 0:02:05]}  Nxc5 {[%clk 0:02:15]} 16. Bxf6 {[%clk 0:02:04]}  Bxf6 {[%clk 0:02:13]} 17. Qxf6 {[%clk 0:02:05]}  Qxf6 {[%clk 0:02:12]} 18. Rxf6 {[%clk 0:02:06]}  a5 {[%clk 0:02:07]} 19. Raf1 {[%clk 0:01:16]}  Kg7 {[%clk 0:02:05]} 20. h4 {[%clk 0:01:13]}  Rad8 {[%clk 0:02:04]} 21. h5 {[%clk 0:01:07]}  Na6 {[%clk 0:01:40]} 22. h6+ {[%clk 0:01:01]}  Kxh6 {[%clk 0:01:29]} 23. Rxf7 {[%clk 0:01:01]}  Rxf7 {[%clk 0:01:29]} 24. Rxf7 {[%clk 0:01:01]}  Nc5 {[%clk 0:01:27]} 25. Kf2 {[%clk 0:00:50]}  Rd7 {[%clk 0:01:24]} 26. Rf8 {[%clk 0:00:31]}  Kg7 {[%clk 0:01:16]} 27. Ra8 {[%clk 0:00:30]}  Na6 {[%clk 0:01:16]} 28. Bxc6 {[%clk 0:00:28]}  Rf7+ {[%clk 0:01:16]} 29. Bf3 {[%clk 0:00:24]}  Nc5 {[%clk 0:01:10]} 30. Kg2 {[%clk 0:00:20]}  b6 {[%clk 0:01:07]} 31. Rb8 {[%clk 0:00:21]}  Rf6 {[%clk 0:01:03]} 32. g4 {[%clk 0:00:21]}  Ne6 {[%clk 0:01:02]} 33. Kg3 {[%clk 0:00:20]}  Ng5 {[%clk 0:01:02]} 34. Bg2 {[%clk 0:00:18]}  h5 {[%clk 0:00:59]} 35. Rd8 {[%clk 0:00:15]}  hxg4 {[%clk 0:00:55]} 36. Rxd3 {[%clk 0:00:14]}  Nf7 {[%clk 0:00:53]} 37. Rd7 {[%clk 0:00:09]}  Kh6 {[%clk 0:00:52]} 38. d4 {[%clk 0:00:09]}  Ng5 {[%clk 0:00:47]} 39. Kxg4 {[%clk 0:00:07]}  Re6 {[%clk 0:00:47]} 40. Kf4 {[%clk 0:00:03]}  Rf6+ {[%clk 0:00:46]} 41. Kg3 {[%clk 0:00:03]}  Re6 {[%clk 0:00:46]} 42. Kf2 {[%clk 0:00:04]}  Rf6+ {[%clk 0:00:47]} 43. Ke2 {[%clk 0:00:05]}  Re6 {[%clk 0:00:45]} 44. d5 {[%clk 0:00:05]}  Re5 {[%clk 0:00:45]} 45. Rd6 {[%clk 0:00:06]}  Nf7 {[%clk 0:00:39]} 46. Rxb6 {[%clk 0:00:06]}  Re7 {[%clk 0:00:37]} 47. Kd3 {[%clk 0:00:05]}  Rd7 {[%clk 0:00:32]} 48. Kd4 {[%clk 0:00:06]}  Nd6 {[%clk 0:00:32]} 49. Be4 {[%clk 0:00:06]}  Kg7 {[%clk 0:00:27]} 50. Bxg6 {[%clk 0:00:06]}  Kxg6 {[%clk 0:00:25]} 51. c5 {[%clk 0:00:06]}  Kf6 {[%clk 0:00:25]} 52. Rxd6+ {[%clk 0:00:06]}  Ke7 {[%clk 0:00:26]} 53. Rxd7+ {[%clk 0:00:07]}  Kxd7 {[%clk 0:00:27]} 54. e4 {[%clk 0:00:07]} 1-0


[Site "https://www.chess.com"]

[Event "Titled Tuesday Blitz December 20 Early 2022"]
[White "Artels, Lieven"]
[Black "Rapy, Francois"]
[WhiteFideId "205834"]
[BlackFideId "26041324"]
[WhiteElo "1984"]
[BlackElo "1642"]
[Result "0-1"]
[Round "08"]
[TimeControl "180+2"]
[Date "2022.12.20"]
[WhiteClock "0:01:20"]
[BlackClock "0:00:40"]

1. b4 {[%clk 0:03:00]}  Nf6 {[%clk 0:02:52]} 2. Bb2 {[%clk 0:03:00]}  e6 {[%clk 0:02:52]} 3. a3 {[%clk 0:02:57]}  a5 {[%clk 0:02:48]} 4. b5 {[%clk 0:02:51]}  d5 {[%clk 0:02:43]} 5. e3 {[%clk 0:02:50]}  Be7 {[%clk 0:02:43]} 6. c4 {[%clk 0:02:48]}  O-O {[%clk 0:02:41]} 7. d4 {[%clk 0:02:46]}  c6 {[%clk 0:02:36]} 8. Nf3 {[%clk 0:02:36]}  cxb5 {[%clk 0:02:35]} 9. cxb5 {[%clk 0:02:36]}  Nbd7 {[%clk 0:02:28]} 10. Bd3 {[%clk 0:02:33]}  Ne4 {[%clk 0:02:27]} 11. O-O {[%clk 0:02:29]}  f5 {[%clk 0:02:24]} 12. Ne5 {[%clk 0:02:24]}  Nxe5 {[%clk 0:02:20]} 13. dxe5 {[%clk 0:02:24]}  Nc5 {[%clk 0:02:20]} 14. Bc2 {[%clk 0:02:20]}  Bd7 {[%clk 0:02:12]} 15. Qe2 {[%clk 0:02:18]}  f4 {[%clk 0:01:48]} 16. Bc1 {[%clk 0:02:07]}  f3 {[%clk 0:01:46]} 17. gxf3 {[%clk 0:01:59]}  Kh8 {[%clk 0:01:26]} 18. f4 {[%clk 0:01:55]}  g5 {[%clk 0:01:26]} 19. a4 {[%clk 0:01:50]}  Qe8 {[%clk 0:01:00]} 20. Qg4 {[%clk 0:01:34]}  gxf4 {[%clk 0:00:55]} 21. exf4 {[%clk 0:01:31]}  Rg8 {[%clk 0:00:55]} 22. Qxg8+ {[%clk 0:01:21]}  Qxg8+ {[%clk 0:00:48]} 23. Kh1 {[%clk 0:01:22]}  Qf7 {[%clk 0:00:46]} 24. Rg1 {[%clk 0:01:22]}  Qh5 {[%clk 0:00:41]} 25. Bb2 {[%clk 0:01:22]}  Qf3+ {[%clk 0:00:40]} 26. Rg2 {[%clk 0:01:20]}  Rg8 {[%clk 0:00:40]} 0-1


[Site "https://www.chess.com"]

[Event "Titled Tuesday Blitz December 20 Early 2022"]
[White "AttractiveChess"]
[Black "viditchess"]
[WhiteElo "2784"]
[BlackElo "2986"]
[Result "1-0"]
[Round "08"]
[TimeControl "180+2"]
[Date "2022.12.20"]
[WhiteClock "0:00:10"]
[BlackClock "0:00:04"]

1. Nf3 {[%clk 0:03:00]}  Nf6 {[%clk 0:02:59]} 2. c4 {[%clk 0:03:01]}  g6 {[%clk 0:03:00]} 3. g3 {[%clk 0:03:01]}  Bg7 {[%clk 0:03:00]} 4. Bg2 {[%clk 0:03:02]}  O-O {[%clk 0:03:01]} 5. O-O {[%clk 0:03:03]}  d6 {[%clk 0:03:01]} 6. d4 {[%clk 0:03:03]}  Nc6 {[%clk 0:03:01]} 7. Nc3 {[%clk 0:03:02]}  Bf5 {[%clk 0:03:01]} 8. Be3 {[%clk 0:03:02]}  Ne4 {[%clk 0:02:58]} 9. Nxe4 {[%clk 0:03:01]}  Bxe4 {[%clk 0:02:59]} 10. d5 {[%clk 0:03:02]}  Bxf3 {[%clk 0:02:53]} 11. exf3 {[%clk 0:03:02]}  Ne5 {[%clk 0:02:54]} 12. b3 {[%clk 0:03:01]}  c5 {[%clk 0:02:51]} 13. Rc1 {[%clk 0:02:56]}  a6 {[%clk 0:02:51]} 14. f4 {[%clk 0:02:53]}  Nd7 {[%clk 0:02:50]} 15. Qd3 {[%clk 0:02:54]}  b5 {[%clk 0:02:50]} 16. h4 {[%clk 0:02:52]}  Nf6 {[%clk 0:02:46]} 17. f5 {[%clk 0:02:51]}  Qa5 {[%clk 0:02:38]} 18. Rc2 {[%clk 0:02:51]}  bxc4 {[%clk 0:02:37]} 19. bxc4 {[%clk 0:02:52]}  Rab8 {[%clk 0:02:38]} 20. fxg6 {[%clk 0:02:45]}  hxg6 {[%clk 0:02:39]} 21. Bh3 {[%clk 0:02:45]}  Rb7 {[%clk 0:02:39]} 22. Bd2 {[%clk 0:02:42]}  Qa4 {[%clk 0:02:38]} 23. Re1 {[%clk 0:02:43]}  Rfb8 {[%clk 0:02:38]} 24. Bc3 {[%clk 0:02:28]}  Rb1 {[%clk 0:02:38]} 25. Rxb1 {[%clk 0:02:28]}  Rxb1+ {[%clk 0:02:38]} 26. Kg2 {[%clk 0:02:29]}  Kf8 {[%clk 0:02:34]} 27. Re2 {[%clk 0:02:25]}  Qd1 {[%clk 0:02:16]} 28. Qxd1 {[%clk 0:02:18]}  Rxd1 {[%clk 0:02:17]} 29. Rb2 {[%clk 0:02:18]}  Ne8 {[%clk 0:02:16]} 30. Bxg7+ {[%clk 0:02:07]}  Kxg7 {[%clk 0:02:17]} 31. Bc8 {[%clk 0:01:47]}  a5 {[%clk 0:02:11]} 32. Rb7 {[%clk 0:01:39]}  Re1 {[%clk 0:02:06]} 33. Ra7 {[%clk 0:01:36]}  Re4 {[%clk 0:01:54]} 34. Ba6 {[%clk 0:01:32]}  Nf6 {[%clk 0:01:53]} 35. Bb5 {[%clk 0:01:30]}  Re2 {[%clk 0:01:54]} 36. Rxa5 {[%clk 0:01:28]}  Rc2 {[%clk 0:01:37]} 37. Ra7 {[%clk 0:01:22]}  Ng4 {[%clk 0:01:22]} 38. Rxe7 {[%clk 0:01:15]}  Rxf2+ {[%clk 0:01:19]} 39. Kh3 {[%clk 0:01:08]}  Ne5 {[%clk 0:01:12]} 40. a4 {[%clk 0:01:00]}  Kh6 {[%clk 0:01:07]} 41. g4 {[%clk 0:00:51]}  g5 {[%clk 0:01:07]} 42. a5 {[%clk 0:00:45]}  Rf3+ {[%clk 0:01:06]} 43. Kg2 {[%clk 0:00:45]}  gxh4 {[%clk 0:01:07]} 44. Rxe5 {[%clk 0:00:26]}  Rg3+ {[%clk 0:01:07]} 45. Kh2 {[%clk 0:00:26]}  dxe5 {[%clk 0:01:07]} 46. d6 {[%clk 0:00:26]}  Rxg4 {[%clk 0:00:07]} 47. a6 {[%clk 0:00:21]}  e4 {[%clk 0:00:04]} 48. a7 {[%clk 0:00:17]}  Rg8 {[%clk 0:00:04]} 49. Bc6 {[%clk 0:00:16]}  e3 {[%clk 0:00:05]} 50. Bf3 {[%clk 0:00:08]}  Kg5 {[%clk 0:00:03]} 51. d7 {[%clk 0:00:09]}  e2 {[%clk 0:00:02]} 52. Bxe2 {[%clk 0:00:06]}  Kf6 {[%clk 0:00:02]} 53. Bf3 {[%clk 0:00:06]}  Ke7 {[%clk 0:00:02]} 54. a8=Q {[%clk 0:00:07]}  Rxa8 {[%clk 0:00:02]} 55. Bxa8 {[%clk 0:00:08]}  Kxd7 {[%clk 0:00:03]} 56. Bd5 {[%clk 0:00:08]}  f5 {[%clk 0:00:02]} 57. Kh3 {[%clk 0:00:09]}  Kd6 {[%clk 0:00:03]} 58. Kxh4 {[%clk 0:00:09]}  Ke5 {[%clk 0:00:04]} 59. Kg3 {[%clk 0:00:10]} 1-0


[Site "https://www.chess.com"]

[Event "Titled Tuesday Blitz December 20 Early 2022"]
[White "Azoulas, Mark"]
[Black "Moh, Teng Keong Deon"]
[WhiteFideId "2033208"]
[BlackFideId "5700868"]
[WhiteElo "2326"]
[BlackElo "2215"]
[Result "0-1"]
[Round "08"]
[TimeControl "180+2"]
[Date "2022.12.20"]
[WhiteClock "0:00:18"]
[BlackClock "0:00:22"]

1. e4 {[%clk 0:03:00]}  c6 {[%clk 0:02:58]} 2. Nc3 {[%clk 0:02:57]}  d5 {[%clk 0:02:58]} 3. Qe2 {[%clk 0:02:58]}  d4 {[%clk 0:02:50]} 4. Nd1 {[%clk 0:02:58]}  e5 {[%clk 0:02:48]} 5. d3 {[%clk 0:02:58]}  c5 {[%clk 0:02:48]} 6. f4 {[%clk 0:02:58]}  Nc6 {[%clk 0:02:48]} 7. Nf3 {[%clk 0:02:54]}  Bg4 {[%clk 0:02:44]} 8. g3 {[%clk 0:02:53]}  exf4 {[%clk 0:02:26]} 9. gxf4 {[%clk 0:02:52]}  Be7 {[%clk 0:02:26]} 10. Bg2 {[%clk 0:02:51]}  Bh4+ {[%clk 0:02:23]} 11. Nf2 {[%clk 0:02:51]}  Nge7 {[%clk 0:02:07]} 12. O-O {[%clk 0:02:50]}  Bh5 {[%clk 0:02:06]} 13. f5 {[%clk 0:02:30]}  Ne5 {[%clk 0:01:59]} 14. Bf4 {[%clk 0:02:30]}  N7c6 {[%clk 0:01:48]} 15. Bg3 {[%clk 0:02:07]}  Bxg3 {[%clk 0:01:35]} 16. hxg3 {[%clk 0:02:08]}  Bxf3 {[%clk 0:01:33]} 17. Bxf3 {[%clk 0:02:08]}  Qg5 {[%clk 0:01:25]} 18. Kg2 {[%clk 0:01:56]}  Qe3 {[%clk 0:01:23]} 19. Qxe3 {[%clk 0:01:52]}  dxe3 {[%clk 0:01:23]} 20. Nd1 {[%clk 0:01:49]}  Nd4 {[%clk 0:00:41]} 21. Nxe3 {[%clk 0:01:34]}  Ndxf3 {[%clk 0:00:41]} 22. Rxf3 {[%clk 0:01:35]}  Nxf3 {[%clk 0:00:41]} 23. Kxf3 {[%clk 0:01:36]}  f6 {[%clk 0:00:42]} 24. Nd5 {[%clk 0:01:35]}  O-O-O {[%clk 0:00:39]} 25. b3 {[%clk 0:01:27]}  Rhe8 {[%clk 0:00:35]} 26. Nf4 {[%clk 0:01:27]}  Rd6 {[%clk 0:00:33]} 27. Rh1 {[%clk 0:01:26]}  h6 {[%clk 0:00:32]} 28. Ne6 {[%clk 0:01:19]}  Rdxe6 {[%clk 0:00:28]} 29. fxe6 {[%clk 0:01:20]}  Rxe6 {[%clk 0:00:29]} 30. Rh5 {[%clk 0:01:14]}  Re5 {[%clk 0:00:29]} 31. Rh4 {[%clk 0:00:55]}  Kd7 {[%clk 0:00:25]} 32. c3 {[%clk 0:00:56]}  f5 {[%clk 0:00:19]} 33. d4 {[%clk 0:00:47]}  cxd4 {[%clk 0:00:18]} 34. cxd4 {[%clk 0:00:48]}  Rxe4 {[%clk 0:00:18]} 35. Rxe4 {[%clk 0:00:47]}  fxe4+ {[%clk 0:00:19]} 36. Kxe4 {[%clk 0:00:48]}  Ke6 {[%clk 0:00:17]} 37. d5+ {[%clk 0:00:44]}  Kf6 {[%clk 0:00:17]} 38. a4 {[%clk 0:00:17]}  h5 {[%clk 0:00:14]} 39. d6 {[%clk 0:00:12]}  g5 {[%clk 0:00:12]} 40. d7 {[%clk 0:00:12]}  Ke7 {[%clk 0:00:13]} 41. Kf5 {[%clk 0:00:12]}  h4 {[%clk 0:00:13]} 42. gxh4 {[%clk 0:00:11]}  gxh4 {[%clk 0:00:14]} 43. Kg4 {[%clk 0:00:11]}  Kxd7 {[%clk 0:00:14]} 44. Kxh4 {[%clk 0:00:12]}  Kd6 {[%clk 0:00:15]} 45. Kg4 {[%clk 0:00:12]}  Kc5 {[%clk 0:00:15]} 46. Kf4 {[%clk 0:00:12]}  Kb4 {[%clk 0:00:16]} 47. Ke4 {[%clk 0:00:13]}  Kxb3 {[%clk 0:00:16]} 48. a5 {[%clk 0:00:13]}  a6 {[%clk 0:00:16]} 49. Kd5 {[%clk 0:00:14]}  Kb4 {[%clk 0:00:16]} 50. Kd4 {[%clk 0:00:12]}  Kxa5 {[%clk 0:00:16]} 51. Kc3 {[%clk 0:00:13]}  b5 {[%clk 0:00:17]} 52. Kb3 {[%clk 0:00:13]}  b4 {[%clk 0:00:18]} 53. Kb2 {[%clk 0:00:13]}  Kb5 {[%clk 0:00:18]} 54. Kb3 {[%clk 0:00:14]}  Kc5 {[%clk 0:00:19]} 55. Ka2 {[%clk 0:00:14]}  Kc4 {[%clk 0:00:20]} 56. Kb2 {[%clk 0:00:15]}  b3 {[%clk 0:00:20]} 57. Ka1 {[%clk 0:00:16]}  Kb4 {[%clk 0:00:21]} 58. Kb2 {[%clk 0:00:17]}  Ka4 {[%clk 0:00:21]} 59. Kb1 {[%clk 0:00:18]}  Ka3 {[%clk 0:00:22]} 60. Kc1 {[%clk 0:00:18]}  Ka2 {[%clk 0:00:22]} 0-1


[Site "https://www.chess.com"]

[Event "Titled Tuesday Blitz December 20 Early 2022"]
[White "Badlyplayed"]
[Black "Harkness, Bryan"]
[BlackFideId "444227"]
[WhiteElo "2262"]
[BlackElo "1935"]
[Result "1-0"]
[Round "08"]
[TimeControl "180+2"]
[Date "2022.12.20"]
[WhiteClock "0:00:19"]
[BlackClock "0:00:01"]

1. e4 {[%clk 0:03:00]}  c5 {[%clk 0:02:56]} 2. d4 {[%clk 0:03:00]}  cxd4 {[%clk 0:02:52]} 3. c3 {[%clk 0:02:59]}  d5 {[%clk 0:02:49]} 4. exd5 {[%clk 0:02:58]}  Qxd5 {[%clk 0:02:48]} 5. cxd4 {[%clk 0:02:59]}  e6 {[%clk 0:02:47]} 6. Nf3 {[%clk 0:02:58]}  Nf6 {[%clk 0:02:46]} 7. Nc3 {[%clk 0:02:58]}  Qd8 {[%clk 0:02:46]} 8. Bd3 {[%clk 0:02:52]}  Be7 {[%clk 0:02:45]} 9. O-O {[%clk 0:02:49]}  O-O {[%clk 0:02:45]} 10. Qe2 {[%clk 0:02:47]}  b6 {[%clk 0:02:39]} 11. Be4 {[%clk 0:02:19]}  Ba6 {[%clk 0:02:15]} 12. Qc2 {[%clk 0:01:48]}  Nxe4 {[%clk 0:02:12]} 13. Qxe4 {[%clk 0:01:47]}  Nd7 {[%clk 0:02:11]} 14. Rd1 {[%clk 0:01:40]}  Nf6 {[%clk 0:02:09]} 15. Qh4 {[%clk 0:01:23]}  Nd5 {[%clk 0:01:57]} 16. Qg3 {[%clk 0:01:20]}  Re8 {[%clk 0:01:44]} 17. Bh6 {[%clk 0:01:16]}  Bf8 {[%clk 0:01:44]} 18. Ne4 {[%clk 0:01:10]}  f5 {[%clk 0:01:14]} 19. Nc3 {[%clk 0:00:50]}  Rc8 {[%clk 0:01:00]} 20. Ne5 {[%clk 0:00:44]}  Nxc3 {[%clk 0:00:45]} 21. bxc3 {[%clk 0:00:43]}  Qf6 {[%clk 0:00:40]} 22. Bg5 {[%clk 0:00:40]}  Be7 {[%clk 0:00:14]} 23. Bxf6 {[%clk 0:00:39]}  Bxf6 {[%clk 0:00:14]} 24. Nd7 {[%clk 0:00:39]}  Be7 {[%clk 0:00:13]} 25. Ne5 {[%clk 0:00:36]}  Bf6 {[%clk 0:00:12]} 26. Rac1 {[%clk 0:00:36]}  Red8 {[%clk 0:00:11]} 27. Nf3 {[%clk 0:00:30]}  Bb7 {[%clk 0:00:06]} 28. h4 {[%clk 0:00:29]}  h6 {[%clk 0:00:05]} 29. Ne5 {[%clk 0:00:29]}  Bd5 {[%clk 0:00:04]} 30. c4 {[%clk 0:00:26]}  Be4 {[%clk 0:00:04]} 31. f3 {[%clk 0:00:25]}  Bb7 {[%clk 0:00:03]} 32. Qg6 {[%clk 0:00:25]}  Rc7 {[%clk 0:00:01]} 33. Qg3 {[%clk 0:00:19]} 1-0


[Site "https://www.chess.com"]

[Event "Titled Tuesday Blitz December 20 Early 2022"]
[White "BahadirOzen"]
[Black "FaustinoOro"]
[WhiteElo "2853"]
[BlackElo "2633"]
[Result "1-0"]
[Round "08"]
[TimeControl "180+2"]
[Date "2022.12.20"]
[WhiteClock "0:02:28"]
[BlackClock "0:01:02"]

1. g3 {[%clk 0:03:00]}  e5 {[%clk 0:02:58]} 2. Bg2 {[%clk 0:03:00]}  d5 {[%clk 0:02:57]} 3. d3 {[%clk 0:03:01]}  Nf6 {[%clk 0:02:57]} 4. Nf3 {[%clk 0:03:01]}  Bd6 {[%clk 0:02:56]} 5. O-O {[%clk 0:03:01]}  O-O {[%clk 0:02:55]} 6. Nbd2 {[%clk 0:03:02]}  c5 {[%clk 0:02:50]} 7. e4 {[%clk 0:02:58]}  d4 {[%clk 0:02:51]} 8. Nc4 {[%clk 0:02:58]}  Nc6 {[%clk 0:02:42]} 9. Nxd6 {[%clk 0:02:55]}  Qxd6 {[%clk 0:02:42]} 10. Nh4 {[%clk 0:02:53]}  b5 {[%clk 0:02:20]} 11. a4 {[%clk 0:02:51]}  b4 {[%clk 0:02:18]} 12. b3 {[%clk 0:02:48]}  a5 {[%clk 0:02:17]} 13. f4 {[%clk 0:02:47]}  Ne7 {[%clk 0:02:06]} 14. Qe1 {[%clk 0:02:31]}  Rb8 {[%clk 0:01:45]} 15. fxe5 {[%clk 0:02:30]}  Qxe5 {[%clk 0:01:41]} 16. Bf4 {[%clk 0:02:30]}  Qh5 {[%clk 0:01:02]} 17. Bxb8 {[%clk 0:02:28]} 1-0


[Site "https://www.chess.com"]